Cogmind - Beta 13 @@@ ROGUE MODE // 2024.07.10 @ 21:12:57 Player: Gabriel Result: Destroyed by G-34 Mercenary with Small Laser Performance ------------- Evolutions (0) 0 Regions Visited (1) 200 Robots Destroyed (20) 100 Value Destroyed (379) 379 Prototype IDs (2) 40 Alien Tech Used (0) 0 Bonus (0) 0 TOTAL SCORE: 719 Bonus ------- None Cogmind --------- Core Integrity 0/250 Matter 295/300 Energy 250/250 System Corruption 0% Temperature Cool (6) Movement Walking (120) Location -10/Materials Parts ------- > --- POWER (1) -------- Ion Engine > --- PROPULSION (2) --- Aluminum Leg Aluminum Leg > --- UTILITY (2) ------ Medium Storage Unit Propulsion Shielding > --- WEAPON (2) ------- (None) > --- INVENTORY (10) --- Light Ion Engine Light Ion Engine Aluminum Leg Aluminum Leg Aluminum Leg Aluminum Leg Small Storage Unit Improved Terrain Scanner Grenade Launcher Peak State ------------ > --- POWER ------------ Ion Engine > --- PROPULSION ------- Aluminum Leg Aluminum Leg > --- UTILITY ---------- Small Storage Unit Improved Terrain Scanner > --- WEAPON ----------- Medium Laser Assault Rifle > --- INVENTORY -------- Light Ion Engine Light Ion Engine Small Laser [Rating: 9] Favorites ----------- Power Ion Engine Engine Ion Engine Propulsion Aluminum Leg Leg Aluminum Leg Utility Medium Storage Unit Device Improved Terrain Scanner Storage Medium Storage Unit Protection Light Armor Plating Weapon Assault Rifle Energy Gun Medium Laser Ballistic Gun Assault Rifle Special Weapon Mining Laser Build | -11 -10 ------- Run | Yrd Mat Slots Evolved . | . . Power . | . . Propulsion . | . . Utility . | . . Weapon . | . . Parts Attached 16 | 9 7 Power 1 | 1 . Engine 1 | 1 . Core . | . . Reactor . | . . Propulsion 4 | 2 2 Treads . | . . Leg 4 | 2 2 Wheel . | . . Hover . | . . Flight . | . . Utility 6 | 2 4 Device 1 | 1 . Storage 2 | 1 1 Processor . | . . Hackware . | . . Protection 3 | . 3 Artifact . | . . Weapon 5 | 4 1 Energy Gun 3 | 2 1 Energy Cannon . | . . Ballistic Gun 1 | 1 . Ballistic Cannon . | . . Launcher . | . . Special Weapon 1 | 1 . Impact Weapon . | . . Slashing Weapon . | . . Piercing Weapon . | . . Special Melee Weapon . | . . Unidentified Prototypes . | . . Parts Lost 4 | . 4 Power . | . . Propulsion . | . . Utility 1 | . 1 Weapon 3 | . 3 Highest Loss Streak 3 | . 3 To Critical Strikes 1 | . 1 Average Slot Usage (%) 98 | . 98 Engine 14 | . 14 Leg 28 | . 28 Device 1 | . 1 Storage 14 | . 14 Protection 11 | . 11 Energy Gun 14 | . 14 Ballistic Gun 13 | . 13 Naked Turns . | . . Heaviest Build 24 | 15 24 Greatest Support 20 | 20 20 Greatest Overweight (x) 1 | . 1 Average Overweight (x) . | . . Largest Inventory Capacity 10 | 8 10 Average Capacity 9 | 7 9 Most Carried 10 | 4 10 Average Carried 7 | 2 7 Final Capacity 10 | 8 10 Final Carried 9 | 3 9 Class Distribution -------------------- 100% | Mutant Dominant Class ---------------- Mutant | -10/Materials Resources | -11 -10 ----------- Run | Yrd Mat Matter Collected 527 | 294 233 Remotely . | . . Salvage Created 627 | 152 475 Parts 51 | 17 34 Haulers Intercepted . | . . Recyclers Shooed . | . . Parts Field Recycled . | . . Retrieved Matter . | . . Parts Self-Destructed . | . . Prevented . | . . Kills | -11 -10 ------- Run | Yrd Mat Combat Hostiles Destroyed 11 | . 11 Guns 11 | . 11 Classes Destroyed 6 | 3 3 Worker 2 | 1 1 Tunneler 3 | 3 . Recycler 1 | 1 . Watcher 3 | . 3 Swarmer 3 | . 3 Grunt 8 | . 8 Best Kill Streak 2 | 2 2 Combat Bots Only 2 | . 2 Max Kills in Single Turn 1 | 1 1 Gunslinging . | . . Exploded . | . . Melee . | . . Uniques/NPCs Destroyed . | . . Combat | -11 -10 -------- Run | Yrd Mat Hostile Shots Fired 135 | . 135 Missed 38 | . 38 Damage Taken 909 | . 909 Core 254 | . 254 Absorbed by Shields . | . . Redirected to Shielding 28 | . 28 Core Remaining (%) 100 | 100 . Volleys Fired 79 | 19 60 Largest 2 | 2 2 Hottest 100 | 100 90 Shots Fired 141 | 25 116 Gun 131 | 15 116 Cannon . | . . Launcher . | . . Special 10 | 10 . Kinetic 64 | 9 55 Thermal 77 | 16 61 Explosive . | . . Electromagnetic . | . . Robot Hit Streak 8 | 2 8 Robot Miss Streak 6 | 3 6 Penetration Max . | . . Secondary Targets 1 | . 1 Max Gunslinging Chain 1 | . 1 Shots Hit Robots 65 | 6 59 Core Hits 27 | 5 22 Critical Kills . | . . Critical Parts Destroyed . | . . Critical Strikes 4 | . 4 Burn 4 | . 4 Melee Attacks . | . . Impact . | . . Slashing . | . . Piercing . | . . Sneak Attacks . | . . Combat Hostiles . | . . Follow-up Attacks . | . . Damage Inflicted 848 | 99 749 Guns 848 | 99 749 Cannons . | . . Explosions . | . . Melee . | . . Ramming . | . . Kinetic 461 | 73 388 Thermal 387 | 26 361 Explosive . | . . Electromagnetic . | . . Impact . | . . Slashing . | . . Piercing . | . . Highest Corruption . | . . Average Corruption . | . . Corruption Purged . | . . Corruption Blocked . | . . Overload Shots . | . . Overflow Damage . | . . Projectiles . | . . Explosions . | . . Melee . | . . Knockbacks . | . . Impact . | . . Kinetic . | . . Secondary . | . . Self-Inflicted Damage . | . . Shots . | . . Rammed . | . . Targets Rammed 2 | . 2 Kicked 2 | . 2 Crushed . | . . Highest Temperature 273 | 64 273 Average Temperature 53 | 22 62 Received Heat Transfer 258 | . 258 Siege Activations . | . . Robots Corrupted . | . . Combat Hostiles . | . . Parts Fried . | . . Impact Corruptions . | . . Robots Melted . | . . Combat Hostiles . | . . Parts Melted 6 | . 6 Heat Transferred 1443 | 74 1369 Parts Sabotaged . | . . Parts Stolen . | . . Parts Stripped . | . . Power Chain Reactions . | . . Alert | -11 -10 ------- Run | Yrd Mat Peak Influence 177 | 25 177 Initial 16 | . 16 Average 52 | 15 59 Maximum Alert Level . | . . Low Security (%) 100 | 100 100 Level 1 . | . . Level 2 . | . . Level 3 . | . . Level 4 . | . . Level 5 . | . . High Security . | . . Max Security . | . . Squads Dispatched 3 | . 3 Investigation 3 | . 3 Extermination . | . . Reinforcement . | . . Assault . | . . Garrison . | . . Intercept . | . . Searches Triggered . | . . Construction Impeded . | . . Haulers Reinforced . | . . Active Scanning Responses . | . . Cargo Convoy Interrupts . | . . Stealth | -11 -10 --------- Run | Yrd Mat Distress Signals 4 | . 4 Communications Jammed . | . . Distress Signals . | . . Times Spotted 28 | . 28 Peak Tracking Total 5 | . 5 Tactical Retreats 5 | . 5 Traps | -11 -10 ------- Run | Yrd Mat Traps Triggered 1 | . 1 Indirectly . | . . Trap Hack Attempts . | . . Triggered . | . . Disarmed . | . . Reprogrammed . | . . Reused . | . . Traps Extracted . | . . Installed . | . . Triggered . | . . Machines | -11 -10 ---------- Run | Yrd Mat Machines Disabled . | . . Max in Single Turn . | . . Machines Repaired . | . . Machines Dismantled . | . . Machines Sabotaged . | . . Overloaded Fab Kills . | . . Hacking | -11 -10 --------- Run | Yrd Mat Machines Accessed 3 | . 3 Terminals 3 | . 3 Fabricators . | . . Repair Stations . | . . Recycling Units . | . . Scanalyzers . | . . Garrison Access . | . . Total Hacks 9 | . 9 Successful 6 | . 6 Failed 3 | . 3 Catastrophic 1 | . 1 Database Lockouts . | . . Manual . | . . Terminals 9 | . 9 Fabricators . | . . Repair Stations . | . . Recycling Units . | . . Scanalyzers . | . . Garrison Access . | . . Terminal Hacks 6 | . 6 Record 1 | . 1 Robot Analysis 2 | . 2 Prototype ID Bank 1 | . 1 Locate Traps 1 | . 1 Zone Layout 1 | . 1 Fabricator Hacks . | . . Repair Station Hacks . | . . Recycling Unit Hacks . | . . Scanalyzer . | . . Garrison Access Hacks . | . . Unauthorized Hacks . | . . Terminals . | . . Fabricators . | . . Repair Stations . | . . Recycling Units . | . . Scanalyzers . | . . Garrison Access . | . . Data Cores Recovered . | . . Used . | . . Hacking Detections 3 | . 3 Full Trace Events 3 | . 3 Feedback Events . | . . Feedback Blocked . | . . Robot Schematics Acquired . | . . Robots Built . | . . Authchips . | . . Time . | . . Total Robot Build Rating . | . . Part Schematics Acquired . | . . Parts Built . | . . Authchips . | . . Time . | . . Total Part Build Rating . | . . Parts Repaired . | . . Time . | . . Parts Recycled . | . . Recycled Matter . | . . Retrieved Matter . | . . Retrieved Components . | . . Parts Scanalyzed . | . . Part Schematics Acquired . | . . Parts Damaged . | . . Bothacking | -11 -10 ------------ Run | Yrd Mat Used RIF Installer . | . . Robots Hacked . | . . Non-combat . | . . Combat . | . . Robot Hacks Applied . | . . Relay Couplers Released . | . . Fabnet Peak Effective % . | . . Robots Rewired . | . . Allies Hacked . | . . Hacks Repelled . | . . Allies | -11 -10 -------- Run | Yrd Mat Total Allies . | . . Largest Group . | . . Highest-Rated Group . | . . Highest-Rated Ally . | . . Total Orders . | . . Ally Attacks . | . . Total Damage . | . . Kills . | . . Allies Corrupted . | . . Allies Melted . | . . Intel | -11 -10 ------- Run | Yrd Mat Robot Analysis Total 2 | . 2 Derelict Logs Recovered . | . . Drone Launches . | . . Drone Recoveries . | . . Exploration | -11 -10 ------------- Run | Yrd Mat Turns Passed 1346 | 228 1118 Spaces Moved 569 | 124 445 Core 11 | 11 . Treads . | . . Legs 558 | 113 445 Wheels . | . . Hover . | . . Flight . | . . Fastest Speed 50 | 50 120 Average Speed 146 | 113 155 Slowest Speed 190 | 120 190 Overloaded Moves . | . . Propulsion Burnouts . | . . Robots Hopped . | . . Cave-ins Triggered . | . . Exploration Rate (%) 31 | 6 57 Regions Visited 1 Branch Regions . Pre-discovered Areas . | . . Known Exits Taken . | . . Unknown Exits Taken 1 | 1 . Scrap Searched . | . . Spaces Dug . | . . Terrain Destroyed 1 | 1 . Melee . | . . Projectile 1 | 1 . AOE . | . . Terrain Rammed . | . . Walls Destroyed . | . . Machines Disabled . | . . Actions | -11 -10 --------- Run | Yrd Mat Total 917 | 165 752 Wait 231 | 2 229 Move 568 | 123 445 Hop . | . . Pick Up 18 | 11 7 Fast Attach 1 | . 1 Attach 8 | 7 1 Detach . | . . Swap 7 | 2 5 Drop 3 | 1 2 Fire 79 | 19 60 Melee . | . . Ram . | . . Kick 2 | . 2 Crush . | . . Escape Stasis . | . . Rewire . | . . Trap . | . . Miscellaneous . | . . Route ------- -11/Scrapyard -10/Materials (discovered 2 exits: [*Mat x2]) History --------- Turn | Location | Event 17 | -11/Scrapyard | Discovered new exit (range 16) 229 | -11/Scrapyard | Entered Materials 312 | -10/Materials | Build established: Mutant 448 | -10/Materials | Discovered new exit (range 5) 1132 | -10/Materials | Discovered new exit (range 5) 1308 | -10/Materials | Core integrity fell below 50% 1341 | -10/Materials | Core integrity fell below 20% 1347 | -10/Materials | Destroyed by G-34 Mercenary with Small Laser Last Messages --------------- increasing derelict use of traps in the caves to impede patrol efforts. >>Layout(Zone) Retrieving Zone 7U layout... Downloaded map data. ALERT: Suspicious activity at Terminal M004. Dispatching Investigation squad. Kicked T-07 Excavator. Lgt. Armor Plating destroyed. G-34 Mercenary destroyed. Acquired 21 matter. G-34 Mercenary destroyed. Acquired 9 matter. Dropped Aluminum Leg. Acquired 10 matter. Acquired Propulsion Shielding. Critical hit (Destroy). Assault Rifle destroyed. Med. Laser destroyed. Sml. Laser destroyed. Map ----- +----------------------------------------------------+ | | | | | | | | | ?????????????????????????????????????????????????? | | ?????????????????????????????????????????????????? | | ???????????????????????????????????????#######???? | | ???????????????????????????????????????# #???? | | # """ ################?######### #???? | | # """ # *%[ #???? | | # # ######! #???? | | +########+##### ?? #????# #???? | | ?? #????### ###???? | | ##############??# #??????# #?????? | | #??############?# ########+##????? | | ############# #??# # #?# # [ #????? | | ????????????# #??# < # #?# #* =%* #????? | | ????????????# #??# # ### #%= """ #????? | | ############# #### / + +[= """""#????? | | # ##### """""#????? | | # #???# """""#????? | | ######/#???# """ #????? | | +#+### #######/#######????# #???# #????? | | # #?# "T" #?????## #########+########## | | # #?# ! ####### % | | # #?# s% @ s g | | "T" # #?# ####### | | ###### #############?????# #####+############### | | # # #???????# ## % #????????????? | | " # # #????#### ## [!###########??? | | " # # """ """ #????# # """%# ! [ #??? | | " # # """ """ #????# # """=# #??? | | + + """ """ #????# T + """ # #??? | | " # # #????# # # """ """ #??? | | # # #????# # """ # """ """ #??? | | " # # #????## ## """ # """ """ #??? | | # ############????# ## """ # #??? | | ###### # #????# ## # #??? | | """ # # """ #????# ############+#####??? | | ????????????????????###### ########## #????? | | ?????#??????????????# #????? | | ?????# ?????????????# ^ #????? | | ?????# ????????????# #????? | | ?????# ???????????# ^ ^ ##### #????? | | ?????# ############ ###########????? | | ?????# ^ """ %##!! #????? | | ?????# ^^""" ##!! ###### | | ?????# """ ##!! # | | ?????# ################# """ ## # " | | ?????# ????????????????# """ =#######+### " | +----------------------------------------------------+ Best States ------------- Heat Dissipation 25 Energy Generation 10 Energy Capacity 250 Matter Stores 300 Matter Capacity 300 Sight Range 16 Terrain Scan Range 16 Terrain Scan Density 10 Armor Coverage 150 Propulsion Shielding 33 Evasion (%) 55 Item Schematics ----------------- None Robot Schematics ------------------ None Fabricated ------------ Nothing Alien Tech Used ----------------- None Achievements -------------- None Challenges ------------ None Game ------ Seed StormAntigravGenerator Manual? 0 Play Time 00:11:14 Cumulative 6.9 hours Start 2024.07.10 @ 20:25:03 End 2024.07.10 @ 21:12:57 Sessions 1 Manual Loads 0 Difficulty Rogue Special Mode None Game No. 12 Rogue 12 Adventurer 0 Explorer 0 Win Type - Total 0 Types 0/0/0/0/0/0/0/0/0 Lore% 11 Gallery% 12 Achievement% 12 Wizard Run 0 Options --------- Layout 1 ASCII 0 Keyboard 0 Movement Mouse Keybinds 0 Fullscreen 1 Font 24/Terminus Map View 50x35 Zoom Use 0% Tactical HUD 0 Map Filters NONE Filters NONE Steam 1 RUN: b7a7c4bd-7b4b-4703-bd35-28460f0f21cf